[Event "Titled Tuesday Blitz October 11 Late 2022"]
[White "Leiva, Gianmarco"]
[Black "Weber, Samuel"]
[WhiteFideId "3804399"]
[BlackFideId "12924008"]
[WhiteElo "2285"]
[BlackElo "2215"]
[Result "1-0"]
[Round "01"]
[TimeControl "180+1"]
[Date "2022.10.12"]
[WhiteClock "0:00:12"]
[BlackClock "0:00:19"]

1. e4 {[%clk 0:03:00]}  e6 {[%clk 0:02:55]} 2. d4 {[%clk 0:03:00]}  d5 {[%clk 0:02:56]} 3. Nd2 {[%clk 0:03:01]}  c5 {[%clk 0:02:54]} 4. exd5 {[%clk 0:02:57]}  Qxd5 {[%clk 0:02:50]} 5. Ngf3 {[%clk 0:02:57]}  cxd4 {[%clk 0:02:50]} 6. Bc4 {[%clk 0:02:57]}  Qa5 {[%clk 0:02:50]} 7. O-O {[%clk 0:02:56]}  Nc6 {[%clk 0:02:49]} 8. Re1 {[%clk 0:02:43]}  Nf6 {[%clk 0:02:35]} 9. Nb3 {[%clk 0:02:39]}  Qb6 {[%clk 0:02:23]} 10. Bf4 {[%clk 0:02:29]}  Be7 {[%clk 0:02:16]} 11. Nfxd4 {[%clk 0:02:27]}  Bd7 {[%clk 0:02:16]} 12. Nb5 {[%clk 0:02:18]}  e5 {[%clk 0:01:26]} 13. Be3 {[%clk 0:01:38]}  Qd8 {[%clk 0:01:17]} 14. Nd6+ {[%clk 0:01:38]}  Bxd6 {[%clk 0:01:17]} 15. Qxd6 {[%clk 0:01:38]}  Qe7 {[%clk 0:01:15]} 16. Bc5 {[%clk 0:01:35]}  Qxd6 {[%clk 0:01:15]} 17. Bxd6 {[%clk 0:01:36]}  O-O-O {[%clk 0:01:08]} 18. Bxf7 {[%clk 0:01:26]}  e4 {[%clk 0:01:05]} 19. Ba3 {[%clk 0:01:10]}  Ne5 {[%clk 0:00:54]} 20. Be7 {[%clk 0:00:36]}  Nxf7 {[%clk 0:00:54]} 21. Bxd8 {[%clk 0:00:37]}  Rxd8 {[%clk 0:00:54]} 22. Rad1 {[%clk 0:00:37]}  b6 {[%clk 0:00:51]} 23. h3 {[%clk 0:00:34]}  Re8 {[%clk 0:00:51]} 24. Nd4 {[%clk 0:00:34]}  Ne5 {[%clk 0:00:49]} 25. b3 {[%clk 0:00:34]}  Nc6 {[%clk 0:00:47]} 26. Nb5 {[%clk 0:00:34]}  Re6 {[%clk 0:00:43]} 27. Nd6+ {[%clk 0:00:34]}  Kc7 {[%clk 0:00:43]} 28. Nf5 {[%clk 0:00:34]}  g6 {[%clk 0:00:40]} 29. Ng3 {[%clk 0:00:34]}  h5 {[%clk 0:00:32]} 30. h4 {[%clk 0:00:31]}  Ne7 {[%clk 0:00:27]} 31. Rd4 {[%clk 0:00:30]}  Bc6 {[%clk 0:00:27]} 32. Ne2 {[%clk 0:00:14]}  Nf5 {[%clk 0:00:27]} 33. Rc4 {[%clk 0:00:15]}  Nxh4 {[%clk 0:00:27]} 34. Nd4 {[%clk 0:00:15]}  Rd6 {[%clk 0:00:27]} 35. Nb5+ {[%clk 0:00:16]}  Kd7 {[%clk 0:00:26]} 36. Nxd6 {[%clk 0:00:16]}  Kxd6 {[%clk 0:00:27]} 37. Rd4+ {[%clk 0:00:12]}  Ke5 {[%clk 0:00:26]} 38. Rd8 {[%clk 0:00:11]}  Nf5 {[%clk 0:00:25]} 39. Red1 {[%clk 0:00:09]}  h4 {[%clk 0:00:20]} 40. a4 {[%clk 0:00:09]}  g5 {[%clk 0:00:19]} 41. Rc8 {[%clk 0:00:08]}  Bd5 {[%clk 0:00:19]} 42. c4 {[%clk 0:00:08]}  Be6 {[%clk 0:00:19]} 43. Rc7 {[%clk 0:00:08]}  a5 {[%clk 0:00:19]} 44. Rb7 {[%clk 0:00:07]}  g4 {[%clk 0:00:19]} 45. Rxb6 {[%clk 0:00:08]}  h3 {[%clk 0:00:20]} 46. Rb5+ {[%clk 0:00:08]}  Kf4 {[%clk 0:00:20]} 47. Rb6 {[%clk 0:00:06]}  Ke5 {[%clk 0:00:16]} 48. Rb5+ {[%clk 0:00:04]}  Kf4 {[%clk 0:00:17]} 49. Rxa5 {[%clk 0:00:04]}  hxg2 {[%clk 0:00:16]} 50. Kxg2 {[%clk 0:00:05]}  Nh4+ {[%clk 0:00:17]} 51. Kf1 {[%clk 0:00:05]}  g3 {[%clk 0:00:16]} 52. fxg3+ {[%clk 0:00:05]}  Kxg3 {[%clk 0:00:13]} 53. Ke1 {[%clk 0:00:02]}  Nf3+ {[%clk 0:00:11]} 54. Ke2 {[%clk 0:00:02]}  Bg4 {[%clk 0:00:12]} 55. Ke3 {[%clk 0:00:02]}  Ne5 {[%clk 0:00:10]} 56. Rxe5 {[%clk 0:00:02]}  Bxd1 {[%clk 0:00:10]} 57. b4 {[%clk 0:00:01]}  Bxa4 {[%clk 0:00:10]} 58. Rg5+ {[%clk 0:00:01]}  Ng4+ {[%clk 0:00:10]} 59. Kxe4 {[%clk 0:00:02]}  Bc2+ {[%clk 0:00:10]} 60. Kd4 {[%clk 0:00:02]}  Kf4 {[%clk 0:00:11]} 61. Rg8 {[%clk 0:00:02]}  Ne3 {[%clk 0:00:10]} 62. Rf8+ {[%clk 0:00:02]}  Nf5+ {[%clk 0:00:11]} 63. Kc5 {[%clk 0:00:03]}  Be4 {[%clk 0:00:12]} 64. Re8 {[%clk 0:00:03]}  Bf3 {[%clk 0:00:12]} 65. b5 {[%clk 0:00:03]}  Kg5 {[%clk 0:00:11]} 66. Kb4 {[%clk 0:00:04]}  Kf6 {[%clk 0:00:11]} 67. Re1 {[%clk 0:00:04]}  Nd6 {[%clk 0:00:11]} 68. Rf1 {[%clk 0:00:04]}  Ke5 {[%clk 0:00:12]} 69. Rxf3 {[%clk 0:00:04]}  Ne4 {[%clk 0:00:13]} 70. Re3 {[%clk 0:00:05]}  Kd4 {[%clk 0:00:13]} 71. Rxe4+ {[%clk 0:00:05]}  Kxe4 {[%clk 0:00:13]} 72. b6 {[%clk 0:00:06]}  Kd4 {[%clk 0:00:14]} 73. b7 {[%clk 0:00:07]}  Ke5 {[%clk 0:00:15]} 74. b8=Q+ {[%clk 0:00:08]}  Ke6 {[%clk 0:00:15]} 75. Qb5 {[%clk 0:00:08]}  Kd6 {[%clk 0:00:15]} 76. Qd5+ {[%clk 0:00:09]}  Kc7 {[%clk 0:00:16]} 77. Qe6 {[%clk 0:00:10]}  Kb7 {[%clk 0:00:16]} 78. Kb5 {[%clk 0:00:11]}  Ka7 {[%clk 0:00:17]} 79. Qe7+ {[%clk 0:00:11]}  Kb8 {[%clk 0:00:18]} 80. Kb6 {[%clk 0:00:11]}  Kc8 {[%clk 0:00:19]} 81. Qc7# {[%clk 0:00:12]} 1-0


[Site "https://www.chess.com"]

[Event "Titled Tuesday Blitz October 11 Late 2022"]
[White "Luch, Michal"]
[Black "Rabineau, Clement"]
[WhiteFideId "1120042"]
[BlackFideId "628891"]
[WhiteElo "2363"]
[BlackElo "2237"]
[Result "1-0"]
[Round "01"]
[TimeControl "180+1"]
[Date "2022.10.12"]
[WhiteClock "0:01:01"]
[BlackClock "0:00:04"]

1. d4 {[%clk 0:03:00]}  d6 {[%clk 0:03:00]} 2. e4 {[%clk 0:03:00]}  g6 {[%clk 0:03:00]} 3. Nc3 {[%clk 0:03:00]}  Bg7 {[%clk 0:03:01]} 4. Be3 {[%clk 0:03:00]}  a6 {[%clk 0:03:01]} 5. h4 {[%clk 0:02:58]}  h6 {[%clk 0:02:59]} 6. Qd2 {[%clk 0:02:57]}  b5 {[%clk 0:02:55]} 7. a4 {[%clk 0:02:56]}  b4 {[%clk 0:02:54]} 8. Nce2 {[%clk 0:02:44]}  a5 {[%clk 0:02:54]} 9. Ng3 {[%clk 0:02:41]}  h5 {[%clk 0:02:48]} 10. Nh3 {[%clk 0:02:40]}  Bb7 {[%clk 0:02:43]} 11. Ng5 {[%clk 0:02:37]}  Nh6 {[%clk 0:02:42]} 12. f3 {[%clk 0:02:35]}  Nd7 {[%clk 0:02:42]} 13. Bc4 {[%clk 0:02:32]}  c5 {[%clk 0:02:27]} 14. Bxf7+ {[%clk 0:02:19]}  Nxf7 {[%clk 0:02:26]} 15. Ne6 {[%clk 0:02:19]}  Qb6 {[%clk 0:02:01]} 16. Nxg7+ {[%clk 0:02:18]}  Kf8 {[%clk 0:02:01]} 17. Ne6+ {[%clk 0:02:16]}  Kg8 {[%clk 0:02:02]} 18. O-O {[%clk 0:01:55]}  Rc8 {[%clk 0:01:52]} 19. f4 {[%clk 0:01:51]}  d5 {[%clk 0:01:42]} 20. Nxc5 {[%clk 0:01:39]}  Nxc5 {[%clk 0:01:41]} 21. dxc5 {[%clk 0:01:40]}  Qc6 {[%clk 0:01:39]} 22. exd5 {[%clk 0:01:24]}  Qxd5 {[%clk 0:01:39]} 23. Qxd5 {[%clk 0:01:25]}  Bxd5 {[%clk 0:01:39]} 24. f5 {[%clk 0:01:20]}  Rc6 {[%clk 0:01:21]} 25. Rad1 {[%clk 0:01:19]}  Bc4 {[%clk 0:01:19]} 26. Rf4 {[%clk 0:01:19]}  Ba6 {[%clk 0:00:51]} 27. Rd7 {[%clk 0:01:17]}  Bc8 {[%clk 0:00:08]} 28. Rxe7 {[%clk 0:01:14]}  Kf8 {[%clk 0:00:03]} 29. Ra7 {[%clk 0:01:09]}  g5 {[%clk 0:00:03]} 30. hxg5 {[%clk 0:01:02]}  Nxg5 {[%clk 0:00:04]} 31. Rd4 {[%clk 0:01:02]}  h4 {[%clk 0:00:04]} 32. Rd8# {[%clk 0:01:01]} 1-0


[Site "https://www.chess.com"]

[Event "Titled Tuesday Blitz October 11 Late 2022"]
[White "Machidon, Cristi"]
[Black "Petrova, Irina"]
[WhiteFideId "13904590"]
[BlackFideId "14124122"]
[WhiteElo "2312"]
[BlackElo "2023"]
[Result "1-0"]
[Round "01"]
[TimeControl "180+1"]
[Date "2022.10.12"]
[WhiteClock "0:00:15"]
[BlackClock "0:00:05"]

1. d4 {[%clk 0:03:00]}  d6 {[%clk 0:02:58]} 2. c4 {[%clk 0:03:00]}  e5 {[%clk 0:02:58]} 3. Nf3 {[%clk 0:03:00]}  e4 {[%clk 0:02:58]} 4. Nfd2 {[%clk 0:02:59]}  f5 {[%clk 0:02:58]} 5. Nc3 {[%clk 0:02:59]}  Nf6 {[%clk 0:02:58]} 6. Nb3 {[%clk 0:02:56]}  g6 {[%clk 0:02:54]} 7. f3 {[%clk 0:02:46]}  exf3 {[%clk 0:02:49]} 8. exf3 {[%clk 0:02:47]}  Bg7 {[%clk 0:02:46]} 9. Bd3 {[%clk 0:02:45]}  O-O {[%clk 0:02:46]} 10. O-O {[%clk 0:02:45]}  c6 {[%clk 0:02:43]} 11. Qe1 {[%clk 0:02:39]}  Na6 {[%clk 0:02:40]} 12. a3 {[%clk 0:02:37]}  Nc7 {[%clk 0:02:34]} 13. Qh4 {[%clk 0:02:36]}  Be6 {[%clk 0:02:20]} 14. Bg5 {[%clk 0:02:32]}  Qd7 {[%clk 0:02:14]} 15. Rae1 {[%clk 0:02:26]}  Rae8 {[%clk 0:02:09]} 16. Re2 {[%clk 0:02:20]}  b5 {[%clk 0:01:55]} 17. Nd2 {[%clk 0:02:13]}  bxc4 {[%clk 0:01:52]} 18. Bxc4 {[%clk 0:02:14]}  Bxc4 {[%clk 0:01:51]} 19. Nxc4 {[%clk 0:02:10]}  Nfd5 {[%clk 0:01:46]} 20. Rfe1 {[%clk 0:01:57]}  Nxc3 {[%clk 0:01:35]} 21. bxc3 {[%clk 0:01:56]}  Rxe2 {[%clk 0:01:05]} 22. Rxe2 {[%clk 0:01:57]}  Nd5 {[%clk 0:01:05]} 23. Qe1 {[%clk 0:01:45]}  h6 {[%clk 0:01:03]} 24. Bd2 {[%clk 0:01:39]}  Rf7 {[%clk 0:00:58]} 25. Qg3 {[%clk 0:01:39]}  Rf6 {[%clk 0:00:50]} 26. h4 {[%clk 0:01:21]}  Kh7 {[%clk 0:00:48]} 27. Qe1 {[%clk 0:01:18]}  f4 {[%clk 0:00:40]} 28. Qb1 {[%clk 0:01:12]}  h5 {[%clk 0:00:28]} 29. Qe4 {[%clk 0:01:09]}  Rf7 {[%clk 0:00:21]} 30. Qe6 {[%clk 0:01:09]}  Re7 {[%clk 0:00:09]} 31. Qxd7 {[%clk 0:01:08]}  Rxd7 {[%clk 0:00:10]} 32. Re6 {[%clk 0:01:06]}  Bf8 {[%clk 0:00:08]} 33. Na5 {[%clk 0:01:05]}  c5 {[%clk 0:00:07]} 34. Re4 {[%clk 0:00:41]}  cxd4 {[%clk 0:00:06]} 35. Rxd4 {[%clk 0:00:41]}  Ne3 {[%clk 0:00:05]} 36. Rxf4 {[%clk 0:00:41]}  Nf5 {[%clk 0:00:03]} 37. Rb4 {[%clk 0:00:31]}  Bg7 {[%clk 0:00:03]} 38. Rb7 {[%clk 0:00:29]}  Rd8 {[%clk 0:00:03]} 39. Nc6 {[%clk 0:00:28]}  Rc8 {[%clk 0:00:02]} 40. Ne7 {[%clk 0:00:25]}  Rc4 {[%clk 0:00:01]} 41. Nxf5 {[%clk 0:00:25]}  gxf5 {[%clk 0:00:02]} 42. Rxa7 {[%clk 0:00:25]}  Kg6 {[%clk 0:00:02]} 43. Kf2 {[%clk 0:00:25]}  Bxc3 {[%clk 0:00:02]} 44. Bxc3 {[%clk 0:00:25]}  Rxc3 {[%clk 0:00:03]} 45. a4 {[%clk 0:00:24]}  Ra3 {[%clk 0:00:03]} 46. Kg3 {[%clk 0:00:24]}  Kf6 {[%clk 0:00:03]} 47. a5 {[%clk 0:00:23]}  Ke6 {[%clk 0:00:03]} 48. a6 {[%clk 0:00:21]}  Kd5 {[%clk 0:00:03]} 49. Rh7 {[%clk 0:00:18]}  Rxa6 {[%clk 0:00:03]} 50. Rxh5 {[%clk 0:00:18]}  Ke6 {[%clk 0:00:01]} 51. Kf4 {[%clk 0:00:15]}  Ra4+ {[%clk 0:00:01]} 52. Kg5 {[%clk 0:00:16]}  Ra2 {[%clk 0:00:02]} 53. Rh6+ {[%clk 0:00:15]}  Ke5 {[%clk 0:00:02]} 54. g4 {[%clk 0:00:14]}  fxg4 {[%clk 0:00:02]} 55. fxg4 {[%clk 0:00:15]}  d5 {[%clk 0:00:02]} 56. Rh8 {[%clk 0:00:15]}  d4 {[%clk 0:00:02]} 57. Re8+ {[%clk 0:00:15]}  Kd5 {[%clk 0:00:03]} 58. h5 {[%clk 0:00:15]}  d3 {[%clk 0:00:03]} 59. h6 {[%clk 0:00:15]}  Rh2 {[%clk 0:00:02]} 60. Rd8+ {[%clk 0:00:14]}  Kc4 {[%clk 0:00:02]} 61. Kg6 {[%clk 0:00:14]}  Kc3 {[%clk 0:00:03]} 62. h7 {[%clk 0:00:13]}  d2 {[%clk 0:00:03]} 63. g5 {[%clk 0:00:12]}  Kc2 {[%clk 0:00:02]} 64. Rxd2+ {[%clk 0:00:11]}  Kxd2 {[%clk 0:00:02]} 65. Kg7 {[%clk 0:00:12]}  Ke3 {[%clk 0:00:02]} 66. h8=Q {[%clk 0:00:12]}  Rxh8 {[%clk 0:00:02]} 67. Kxh8 {[%clk 0:00:13]}  Kf4 {[%clk 0:00:03]} 68. g6 {[%clk 0:00:14]}  Kf5 {[%clk 0:00:04]} 69. g7 {[%clk 0:00:15]}  Kf6 {[%clk 0:00:05]} 70. g8=Q {[%clk 0:00:15]} 1-0


[Site "https://www.chess.com"]

[Event "Titled Tuesday Blitz October 11 Late 2022"]
[White "Makarian, Rudik"]
[Black "Buchenau, Frank"]
[WhiteFideId "44105681"]
[BlackFideId "4604350"]
[WhiteElo "2790"]
[BlackElo "2432"]
[Result "1-0"]
[Round "01"]
[TimeControl "180+1"]
[Date "2022.10.12"]
[WhiteClock "0:01:39"]
[BlackClock "0:00:04"]

1. d4 {[%clk 0:02:58]}  e6 {[%clk 0:02:59]} 2. Nf3 {[%clk 0:02:58]}  Nf6 {[%clk 0:02:59]} 3. c4 {[%clk 0:02:58]}  b6 {[%clk 0:02:59]} 4. a3 {[%clk 0:02:58]}  Ba6 {[%clk 0:02:59]} 5. Qc2 {[%clk 0:02:58]}  Bb7 {[%clk 0:02:57]} 6. Nc3 {[%clk 0:02:58]}  c5 {[%clk 0:02:57]} 7. e4 {[%clk 0:02:57]}  cxd4 {[%clk 0:02:57]} 8. Nxd4 {[%clk 0:02:58]}  Bc5 {[%clk 0:02:56]} 9. Nf3 {[%clk 0:02:58]}  Nc6 {[%clk 0:02:54]} 10. Bg5 {[%clk 0:02:48]}  h6 {[%clk 0:02:50]} 11. Bh4 {[%clk 0:02:47]}  Nd4 {[%clk 0:02:50]} 12. Nxd4 {[%clk 0:02:46]}  Bxd4 {[%clk 0:02:50]} 13. Bd3 {[%clk 0:02:39]}  Qb8 {[%clk 0:02:24]} 14. Bg3 {[%clk 0:02:26]}  Be5 {[%clk 0:02:23]} 15. O-O {[%clk 0:02:26]}  Bxg3 {[%clk 0:02:19]} 16. hxg3 {[%clk 0:02:27]}  O-O {[%clk 0:02:12]} 17. Rfe1 {[%clk 0:02:20]}  Qe5 {[%clk 0:02:07]} 18. Qd2 {[%clk 0:02:17]}  Rac8 {[%clk 0:01:52]} 19. Rad1 {[%clk 0:02:15]}  Qh5 {[%clk 0:01:45]} 20. Be2 {[%clk 0:01:58]}  Ng4 {[%clk 0:01:22]} 21. Bxg4 {[%clk 0:01:57]}  Qxg4 {[%clk 0:01:22]} 22. Qxd7 {[%clk 0:01:56]}  Bc6 {[%clk 0:01:11]} 23. Qd6 {[%clk 0:01:54]}  Rfd8 {[%clk 0:00:47]} 24. Qxd8+ {[%clk 0:01:53]}  Rxd8 {[%clk 0:00:48]} 25. Rxd8+ {[%clk 0:01:54]}  Kh7 {[%clk 0:00:48]} 26. Rd6 {[%clk 0:01:54]}  Be8 {[%clk 0:00:37]} 27. Rd8 {[%clk 0:01:55]}  Bc6 {[%clk 0:00:37]} 28. Rc8 {[%clk 0:01:55]}  Bb7 {[%clk 0:00:27]} 29. Rc7 {[%clk 0:01:55]}  Ba6 {[%clk 0:00:26]} 30. Rxa7 {[%clk 0:01:55]}  Bxc4 {[%clk 0:00:26]} 31. Rxf7 {[%clk 0:01:55]}  Qg5 {[%clk 0:00:17]} 32. Rd1 {[%clk 0:01:49]}  e5 {[%clk 0:00:13]} 33. Rc7 {[%clk 0:01:48]}  b5 {[%clk 0:00:12]} 34. Rdd7 {[%clk 0:01:44]}  Qc1+ {[%clk 0:00:09]} 35. Kh2 {[%clk 0:01:45]}  Qxb2 {[%clk 0:00:07]} 36. Rxg7+ {[%clk 0:01:46]}  Kh8 {[%clk 0:00:07]} 37. Nd5 {[%clk 0:01:40]}  Bxd5 {[%clk 0:00:06]} 38. exd5 {[%clk 0:01:40]}  Qxf2 {[%clk 0:00:04]} 39. Rgf7 {[%clk 0:01:39]} 1-0


[Site "https://www.chess.com"]

[Event "Titled Tuesday Blitz October 11 Late 2022"]
[White "Matinian, Nikita"]
[Black "Haszon, David"]
[WhiteFideId "24129100"]
[BlackFideId "733610"]
[WhiteElo "2422"]
[BlackElo "2211"]
[Result "1-0"]
[Round "01"]
[TimeControl "180+1"]
[Date "2022.10.12"]
[WhiteClock "0:00:18"]
[BlackClock "0:00:10"]

1. e4 {[%clk 0:03:00]}  c5 {[%clk 0:02:58]} 2. Nf3 {[%clk 0:02:59]}  d6 {[%clk 0:02:58]} 3. d4 {[%clk 0:03:00]}  cxd4 {[%clk 0:02:59]} 4. Nxd4 {[%clk 0:03:00]}  Nf6 {[%clk 0:02:58]} 5. Nc3 {[%clk 0:03:01]}  a6 {[%clk 0:02:56]} 6. Bg5 {[%clk 0:03:01]}  Nbd7 {[%clk 0:02:56]} 7. Bc4 {[%clk 0:02:58]}  e6 {[%clk 0:02:48]} 8. f4 {[%clk 0:02:57]}  Qc7 {[%clk 0:02:36]} 9. Bb3 {[%clk 0:02:55]}  h6 {[%clk 0:02:23]} 10. Bxf6 {[%clk 0:02:53]}  Nxf6 {[%clk 0:02:20]} 11. Qe2 {[%clk 0:02:53]}  Be7 {[%clk 0:02:13]} 12. e5 {[%clk 0:02:24]}  dxe5 {[%clk 0:02:08]} 13. fxe5 {[%clk 0:02:25]}  Nd7 {[%clk 0:01:53]} 14. Bxe6 {[%clk 0:02:24]}  Nxe5 {[%clk 0:01:45]} 15. Bxc8 {[%clk 0:02:23]}  Rxc8 {[%clk 0:01:46]} 16. O-O-O {[%clk 0:02:15]}  O-O {[%clk 0:01:32]} 17. Nd5 {[%clk 0:02:12]}  Bg5+ {[%clk 0:01:15]} 18. Kb1 {[%clk 0:02:09]}  Qb8 {[%clk 0:01:06]} 19. h4 {[%clk 0:02:03]}  Bd8 {[%clk 0:01:06]} 20. Nf5 {[%clk 0:02:00]}  Re8 {[%clk 0:00:42]} 21. Rh3 {[%clk 0:01:48]}  Bc7 {[%clk 0:00:37]} 22. Nde7+ {[%clk 0:01:36]}  Kh8 {[%clk 0:00:37]} 23. Qh5 {[%clk 0:01:24]}  Rcd8 {[%clk 0:00:30]} 24. Re1 {[%clk 0:01:10]}  Kh7 {[%clk 0:00:22]} 25. Nxh6 {[%clk 0:01:02]}  g6 {[%clk 0:00:18]} 26. Qg5 {[%clk 0:01:02]}  Rxe7 {[%clk 0:00:18]} 27. Qxe7 {[%clk 0:01:01]}  Kxh6 {[%clk 0:00:18]} 28. h5 {[%clk 0:00:59]}  g5 {[%clk 0:00:15]} 29. Qf6+ {[%clk 0:00:58]}  Kh7 {[%clk 0:00:16]} 30. Qxg5 {[%clk 0:00:48]}  Rg8 {[%clk 0:00:16]} 31. Qf5+ {[%clk 0:00:47]}  Kh8 {[%clk 0:00:17]} 32. Qf6+ {[%clk 0:00:46]}  Kh7 {[%clk 0:00:17]} 33. Rhe3 {[%clk 0:00:35]}  Qd8 {[%clk 0:00:13]} 34. Qf5+ {[%clk 0:00:34]}  Kh6 {[%clk 0:00:13]} 35. Rxe5 {[%clk 0:00:34]}  Bxe5 {[%clk 0:00:13]} 36. Qxe5 {[%clk 0:00:33]}  Qg5 {[%clk 0:00:11]} 37. Qd6+ {[%clk 0:00:26]}  Kxh5 {[%clk 0:00:11]} 38. Rh1+ {[%clk 0:00:24]}  Kg4 {[%clk 0:00:11]} 39. Rh3 {[%clk 0:00:19]}  Qf4 {[%clk 0:00:10]} 40. Rh4+ {[%clk 0:00:18]} 1-0


[Site "https://www.chess.com"]

[Event "Titled Tuesday Blitz October 11 Late 2022"]
[White "Meunier-Pion, Jean"]
[Black "Rustemov, Alexander"]
[WhiteFideId "20685327"]
[BlackFideId "4119002"]
[WhiteElo "2467"]
[BlackElo "2867"]
[Result "0-1"]
[Round "01"]
[TimeControl "180+1"]
[Date "2022.10.12"]
[WhiteClock "0:00:56"]
[BlackClock "0:01:22"]

1. e4 {[%clk 0:02:59]}  e6 {[%clk 0:02:59]} 2. d4 {[%clk 0:02:59]}  d5 {[%clk 0:02:59]} 3. Nd2 {[%clk 0:02:59]}  dxe4 {[%clk 0:03:00]} 4. Nxe4 {[%clk 0:02:59]}  Bd7 {[%clk 0:03:00]} 5. Nf3 {[%clk 0:02:58]}  Bc6 {[%clk 0:03:00]} 6. Bd3 {[%clk 0:02:58]}  Nd7 {[%clk 0:03:01]} 7. O-O {[%clk 0:02:55]}  Ngf6 {[%clk 0:03:01]} 8. Qe2 {[%clk 0:02:45]}  Nxe4 {[%clk 0:02:58]} 9. Bxe4 {[%clk 0:02:45]}  Bxe4 {[%clk 0:02:59]} 10. Qxe4 {[%clk 0:02:45]}  c6 {[%clk 0:02:59]} 11. Bg5 {[%clk 0:02:41]}  Be7 {[%clk 0:02:59]} 12. Bxe7 {[%clk 0:02:40]}  Qxe7 {[%clk 0:03:00]} 13. c4 {[%clk 0:02:40]}  O-O {[%clk 0:03:00]} 14. d5 {[%clk 0:02:37]}  cxd5 {[%clk 0:02:54]} 15. cxd5 {[%clk 0:02:37]}  Nf6 {[%clk 0:02:54]} 16. Qh4 {[%clk 0:02:37]}  Nxd5 {[%clk 0:02:53]} 17. Qxe7 {[%clk 0:02:36]}  Nxe7 {[%clk 0:02:53]} 18. Rfd1 {[%clk 0:02:36]}  Nd5 {[%clk 0:02:52]} 19. Ne5 {[%clk 0:02:33]}  Rfc8 {[%clk 0:02:51]} 20. Rd2 {[%clk 0:02:30]}  Rc7 {[%clk 0:02:47]} 21. g3 {[%clk 0:02:29]}  Rac8 {[%clk 0:02:47]} 22. Rad1 {[%clk 0:02:29]}  Rc1 {[%clk 0:02:40]} 23. Kg2 {[%clk 0:02:27]}  Rxd1 {[%clk 0:02:39]} 24. Rxd1 {[%clk 0:02:27]}  Rc2 {[%clk 0:02:40]} 25. Rb1 {[%clk 0:02:26]}  f6 {[%clk 0:02:35]} 26. Nd3 {[%clk 0:02:17]}  Rd2 {[%clk 0:02:29]} 27. Nc5 {[%clk 0:02:15]}  e5 {[%clk 0:02:17]} 28. Nxb7 {[%clk 0:02:05]}  e4 {[%clk 0:02:17]} 29. Kg1 {[%clk 0:01:59]}  Nb4 {[%clk 0:02:05]} 30. Nc5 {[%clk 0:01:53]}  f5 {[%clk 0:02:02]} 31. a3 {[%clk 0:01:50]}  Nc6 {[%clk 0:01:53]} 32. b4 {[%clk 0:01:42]}  Ne5 {[%clk 0:01:46]} 33. b5 {[%clk 0:01:30]}  e3 {[%clk 0:01:43]} 34. fxe3 {[%clk 0:01:13]}  Nf3+ {[%clk 0:01:43]} 35. Kf1 {[%clk 0:01:14]}  Nxh2+ {[%clk 0:01:43]} 36. Ke1 {[%clk 0:01:15]}  Nf3+ {[%clk 0:01:43]} 37. Kf1 {[%clk 0:01:15]}  h5 {[%clk 0:01:33]} 38. a4 {[%clk 0:01:11]}  Rc2 {[%clk 0:01:23]} 39. Ne6 {[%clk 0:00:56]}  Nd2+ {[%clk 0:01:22]} 0-1


[Site "https://www.chess.com"]

[Event "Titled Tuesday Blitz October 11 Late 2022"]
[White "Nakamura, Hikaru"]
[Black "O`Gorman, Tom"]
[WhiteFideId "2016192"]
[BlackFideId "2508249"]
[WhiteElo "2909"]
[BlackElo "2271"]
[Result "1-0"]
[Round "01"]
[TimeControl "180+1"]
[Date "2022.10.11"]
[WhiteClock "0:01:07"]
[BlackClock "0:00:52"]

1. Nf3 {[%clk 0:03:00]}  g6 {[%clk 0:02:56]} 2. e4 {[%clk 0:03:00]}  c5 {[%clk 0:02:54]} 3. c3 {[%clk 0:02:55]}  Nf6 {[%clk 0:02:49]} 4. e5 {[%clk 0:02:53]}  Nd5 {[%clk 0:02:49]} 5. d4 {[%clk 0:02:50]}  cxd4 {[%clk 0:02:37]} 6. Qxd4 {[%clk 0:02:51]}  Nc7 {[%clk 0:02:34]} 7. Bc4 {[%clk 0:02:49]}  Nc6 {[%clk 0:02:32]} 8. Qh4 {[%clk 0:02:37]}  Bg7 {[%clk 0:02:31]} 9. Bh6 {[%clk 0:02:35]}  Bxh6 {[%clk 0:02:18]} 10. Qxh6 {[%clk 0:02:33]}  Ne6 {[%clk 0:02:18]} 11. Bxe6 {[%clk 0:02:30]}  dxe6 {[%clk 0:02:18]} 12. Qg7 {[%clk 0:02:30]}  Rf8 {[%clk 0:02:18]} 13. O-O {[%clk 0:02:30]}  Qd5 {[%clk 0:02:13]} 14. Na3 {[%clk 0:02:21]}  Bd7 {[%clk 0:02:11]} 15. Rfd1 {[%clk 0:02:18]}  Qc5 {[%clk 0:02:07]} 16. b4 {[%clk 0:02:15]}  Qb6 {[%clk 0:01:56]} 17. Rd2 {[%clk 0:02:13]}  O-O-O {[%clk 0:01:56]} 18. Rad1 {[%clk 0:02:12]}  Nb8 {[%clk 0:01:46]} 19. h3 {[%clk 0:01:34]}  Qa6 {[%clk 0:01:22]} 20. Nc2 {[%clk 0:01:30]}  Qxa2 {[%clk 0:01:21]} 21. Ne3 {[%clk 0:01:26]}  Qb3 {[%clk 0:01:21]} 22. Ng5 {[%clk 0:01:26]}  h5 {[%clk 0:00:53]} 23. Nxf7 {[%clk 0:01:23]}  Rg8 {[%clk 0:00:53]} 24. Qh7 {[%clk 0:01:17]}  Rdf8 {[%clk 0:00:54]} 25. Nh6 {[%clk 0:01:09]}  Rh8 {[%clk 0:00:53]} 26. Qxe7 {[%clk 0:01:09]}  Re8 {[%clk 0:00:53]} 27. Qc5+ {[%clk 0:01:08]}  Bc6 {[%clk 0:00:52]} 28. Nf7 {[%clk 0:01:07]} 1-0


[Site "https://www.chess.com"]